fUSD/lending_fUSD_20240902
["ID","MTS","AMOUNT","RATE_DAILY","PERIOD"]
[337007167,1725304899669,194.36,0.00010959,2]
[337007169,1725305163361,625.73,0.00011878,2]
[337007182,1725305432340,-654.99088478,0.00013537,2]
[337007183,1725305432352,-2523.33377434,0.00013537,2]
[337007184,1725305432361,-397.49601496,0.00013595,2]
[337007185,1725305432373,-368.50398504,0.00013595,2]
[337007186,1725305432382,-149.35112701,0.00013637,2]
[337007187,1725305432393,-100.64887299,0.00013637,2]
[337007188,1725305432402,-300.0,0.00013661,2]
[337007189,1725305432411,-420.2252157,0.00013662,2]
[337007190,1725305432568,-23479.7747843,0.00013662,2]
[337007192,1725305432579,-250.0,0.00013671,2]
[337007194,1725305432589,-250.0,0.0001368,2]
[337007196,1725305432599,-1500.0,0.00013683,2]
[337007198,1725305432608,-5827.1577,0.00013697,2]
[337007200,1725305432619,-150.0,0.0001378,2]
[337007202,1725305432628,-499.99,0.0001378,2]
[337007204,1725305432638,-1237.31,0.000138,2]
[337007206,1725305432647,-249.19468293,0.00013809,2]
[337007208,1725305432660,-150.0,0.00013818,2]
[337007209,1725305432669,-34838.77,0.00013819,2]
[337007210,1725305432679,-151.92,0.00013837,2]
[337007211,1725305432688,-640.0,0.00013905,2]
[337007212,1725305432697,-369.33,0.00013969,2]
[337007213,1725305432706,-625.73,0.00014142,2]
[337007214,1725305432718,-1786.7,0.00014177,2]
[337007215,1725305432727,-309.99,0.00014184,2]
[337007216,1725305432736,-25947.113142,0.000148,2]
[337007217,1725305432747,-361.415,0.0001485,2]
[337007218,1725305432756,-701.8361,0.0001489,2]
[337007219,1725305432768,-15334.2502,0.0001489,2]
[337007220,1725305432779,-268.0911,0.0001489,2]
[337007221,1725305432789,-339.508,0.0001489,2]
[337007222,1725305432801,-1000.0,0.0001489,2]
[337007223,1725305432811,-1591.58847591,0.00014897,2]
[337007224,1725305432821,-612.88165555,0.00014897,2]
[337007225,1725305432831,-5583.0098,0.000149,2]
[337007226,1725305432841,-167.93481959,0.000149,2]
[337007227,1725305432852,-8198.39692168,0.0001498,3]
[337007228,1725305432862,-4099.19846084,0.00014989,3]
[337007229,1725305432872,-743.63378,0.00014989,2]
[337007230,1725305432883,-8198.39692168,0.0001499,3]
[337007231,1725305432893,-184463.930738,0.0001499,3]
[337007232,1725305432904,-150.83,0.0001499,2]
[337007233,1725305432915,-263.2636356,0.0001499,2]
[337007234,1725305432925,-263.2636356,0.0001499,2]
[337007235,1725305432934,-263.2636356,0.0001499,2]
[337007236,1725305432944,-165.86544257,0.00014997,2]
[337007237,1725305432953,-2128.56637283,0.00014999,2]
[337007238,1725305432963,-268.98612969,0.00014999,2]
[337007239,1725305432972,-500.0,0.00014999,2]
[337007240,1725305432982,-500.0,0.00014999,2]
[337007241,1725305432991,-429.50007452,0.00014999,2]
[337007242,1725305433001,-86515.77731914,0.00015,2]
[337007248,1725305438717,-587.5728,0.00015,2]
[337007259,1725305440434,-900.71549999,0.00015,2]
[337007285,1725305446475,-510.0459,0.0001489,2]
[337007286,1725305446486,-18628.17382723,0.00015,2]
[337007287,1725305446497,-199890.62716525,0.00015,2]
[337007288,1725305446510,-18941.82842664,0.00015,2]
[337007289,1725305446522,-599.38775637,0.00015,2]
[337007290,1725305446661,-4177.44139189,0.00015,2]
[337007291,1725305446674,-282.1500054,0.00015,2]
[337007292,1725305631150,153.96,0.00010959,2]
[337007293,1725306129715,164.51,0.00010959,2]
[337007294,1725306469230,595.36,0.00012345,2]
[337007295,1725306517720,550.0,0.00011,2]
[337007299,1725306631437,-150.0,0.00013488,2]
[337007300,1725306631449,-250.0,0.00014055,2]
[337007301,1725306631459,-99.60047608,0.00014063,2]
[337007302,1725306631490,-388.39952392,0.00014063,2]
[337007303,1725306631502,-1351.60047608,0.00014074,2]
[337007304,1725306631514,-148.39952392,0.00014074,2]
[337007305,1725306631523,-101.93828161,0.00014102,2]
[337007306,1725306631544,-2691.68471445,0.00014102,2]
[337007307,1725306631597,-2810.31557355,0.00014102,2]
[337007308,1725306631610,-1032.01313129,0.00014102,2]
[337007310,1725306637505,-4506.84656511,0.00014102,2]
[337007311,1725306637515,-424.43,0.00014102,2]
[337007312,1725306637525,-300.0,0.00014148,2]
[337007313,1725306637536,-250.0,0.00014149,2]
[337007314,1725306637546,-150.0,0.00014298,2]
[337007315,1725306637556,-241.947,0.00014374,2]
[337007316,1725306637569,-771.07115909,0.00014374,2]
[337007317,1725306637582,-652.16989619,0.00014374,2]
[337007318,1725306637661,-1202.39730484,0.00014374,2]
[337007319,1725306637718,-420.0,0.00014374,2]
[337007320,1725306637730,-596.59379699,0.00014374,2]
[337007321,1725306637742,-270.9400001,0.00014374,2]
[337007327,1725306639451,-2775.97473653,0.00014374,2]
[337007328,1725306639608,-3579.8558231,0.00014374,2]
[337007329,1725306639620,-2778.37187532,0.00014374,2]
[337007330,1725306639719,-5840.9946784,0.00014374,2]
[337007331,1725306639731,-522.77982189,0.00014374,2]
[337007332,1725306639742,-4246.90390755,0.00014374,2]
[337007333,1725306639751,-174.22,0.00014391,2]
[337007334,1725306639761,-499.99,0.00014409,2]
[337007335,1725306639770,-727.0,0.00014409,2]
[337007336,1725306639780,-150.0,0.00014521,2]
[337007337,1725306639789,-250.0,0.00014575,2]
[337007338,1725306639798,-595.36,0.00014609,2]
[337007339,1725306639808,-512.0,0.00014628,2]
[337007340,1725306639817,-7058.95560395,0.0001479,2]
[337007341,1725306639828,-13194.82316414,0.000148,2]
[337007343,1725306642488,-311.24,0.000148,2]
[337007359,1725306643313,-11551.48273301,0.000148,2]
[337007362,1725306645533,-50204.55437935,0.000148,2]
[337007363,1725306645543,-2647.88828903,0.000148,2]
[337007364,1725306645554,-176.4994,0.0001489,2]
[337007365,1725306645565,-407.8642,0.0001489,2]
[337007366,1725306645576,-32061.7967,0.0001489,2]
[337007367,1725306645585,-8988.697,0.000149,2]
[337007368,1725306645595,-4289.745,0.000149,2]
[337007369,1725306645606,-730.0594,0.000149,2]
[337007370,1725306645615,-2119.6451,0.000149,2]
[337007371,1725306645626,-536.27144865,0.000149,2]
[337007372,1725306645636,-192.934098,0.000149,2]
[337007373,1725306645647,-500.0,0.00014973,2]
[337007374,1725306645657,-4612.56135894,0.0001498,3]
[337007375,1725306645667,-768.76022649,0.0001499,3]
[337007376,1725306645678,-7687.6022649,0.0001499,3]
[337007377,1725306645692,-150.83,0.0001499,2]
[337007378,1725306645702,-615.0,0.00015,2]
[337007379,1725306645714,-1999.56835857,0.00015,2]
[337007380,1725306645742,-8058.66270504,0.00015,2]
[337007381,1725306645752,-76339.67606553,0.00015,2]
[337007382,1725306796113,171.01,0.00010959,2]
[337007383,1725307034656,545.82,0.0001246,2]
[337007384,1725307279031,152.52,0.00010959,2]
[337007385,1725307594111,529.24,0.0001237,2]
[337007388,1725307701347,200.0,0.00012308,2]
[337007391,1725307821143,194.95,0.00010959,2]
[337007392,1725307831619,-250.0,0.00013889,2]
[337007393,1725307831629,-538.13854086,0.00013901,2]
[337007394,1725307831673,-685.05424735,0.00013901,2]
[337007395,1725307831727,-724.57792479,0.00013901,2]
[337007396,1725307831736,-1000.0,0.00013971,2]
[337007397,1725307831746,-174.22,0.00013978,2]
[337007398,1725307831756,-346.93,0.00014054,2]
[337007399,1725307831765,-250.0,0.00014145,2]
[337007400,1725307831774,-250.0,0.00014203,2]
[337007402,1725307831784,-7272.56,0.00014209,2]
[337007403,1725307831793,-330.31,0.00014455,2]
[337007405,1725307831802,-600.0,0.000145,5]
[337007407,1725307831811,-19999.99,0.000146,2]
[337007409,1725307831821,-2171.61997467,0.000146,2]
[337007422,1725307837687,-304.94405594,0.000146,2]
[337007423,1725307837700,-782.53154917,0.000146,2]
[337007424,1725307837734,-214.09442022,0.000146,2]
[337007425,1725307837743,-427.61223258,0.000146,2]
[337007428,1725307839624,-308.94361421,0.000146,2]
[337007429,1725307839729,-351.5708,0.000146,2]
[337007430,1725307839835,-485.945,0.000146,2]
[337007431,1725307839941,-28425.91835321,0.000146,2]
[337007432,1725307839951,-1782.3,0.000146,2]
[337007433,1725307839961,-1200.0,0.000146,5]
[337007434,1725307839970,-529.24,0.00014634,2]
[337007435,1725307839979,-1800.0,0.000147,5]
[337007436,1725307839988,-4396.65974343,0.0001479,2]
[337007437,1725307839997,-311.84543466,0.00014799,2]
[337007438,1725307840007,-2400.0,0.000148,5]
[337007439,1725307840016,-331.85122983,0.00014889,2]
[337007440,1725307840025,-3515.1513,0.0001489,2]
[337007441,1725307840035,-100000.0,0.0001489,2]
[337007442,1725307840044,-245000.0,0.0001489,2]
[337007443,1725307840056,-499.99,0.0001489,2]
[337007444,1725307840065,-553.35245465,0.00014899,2]
[337007445,1725307840076,-352.6593,0.000149,2]
[337007446,1725307840085,-172.00474581,0.000149,2]
[337007447,1725307840094,-744.0477,0.000149,2]
[337007448,1725307840104,-3000.0,0.000149,5]
[337007449,1725307840114,-192.93409799,0.000149,2]
[337007450,1725307840124,-1058.69852512,0.000149,2]
[337007451,1725307840134,-500.0,0.00014973,2]
[337007452,1725307840144,-439.58526808,0.0001499,2]
[337007453,1725307840153,-439.58526808,0.0001499,2]
[337007454,1725307840163,-439.58526808,0.0001499,2]
[337007455,1725307840172,-151.74,0.0001499,2]
[337007456,1725307840181,-151.74,0.0001499,2]
[337007457,1725307840191,-151.74,0.0001499,2]
[337007458,1725307840200,-151.74,0.0001499,2]
[337007459,1725307840209,-151.74,0.0001499,2]
[337007460,1725307840218,-151.74,0.0001499,2]
[337007461,1725307840227,-151.74,0.0001499,2]
[337007462,1725307840236,-151.74,0.0001499,2]
[337007463,1725307840245,-151.74,0.0001499,2]
[337007464,1725307840255,-151.74,0.0001499,2]
[337007465,1725307840264,-151.74,0.0001499,2]
[337007466,1725307840273,-151.74,0.0001499,2]
[337007467,1725307840283,-151.74,0.0001499,2]
[337007468,1725307840292,-151.74,0.0001499,2]
[337007469,1725307840301,-151.74,0.0001499,2]
[337007470,1725307840311,-151.74,0.0001499,2]
[337007471,1725307840320,-151.74,0.0001499,2]
[337007472,1725307840329,-151.74,0.0001499,2]
[337007473,1725307840338,-151.74,0.0001499,2]
[337007474,1725307840347,-151.74,0.0001499,2]
[337007475,1725307840356,-151.74,0.0001499,2]
[337007476,1725307840365,-151.74,0.0001499,2]
[337007477,1725307840375,-151.74,0.0001499,2]
[337007478,1725307840384,-151.74,0.0001499,2]
[337007479,1725307840394,-151.74,0.0001499,2]
[337007480,1725307840403,-151.74,0.0001499,2]
[337007481,1725307840412,-151.74,0.0001499,2]
[337007482,1725307840422,-151.74,0.0001499,2]
[337007483,1725307840433,-151.74,0.0001499,2]
[337007484,1725307840443,-151.74,0.0001499,2]
[337007485,1725307840453,-151.74,0.0001499,2]
[337007486,1725307840463,-151.74,0.0001499,2]
[337007487,1725307840473,-151.74,0.0001499,2]
[337007488,1725307840483,-241.33539938,0.00014999,2]
[337007489,1725307840492,-430.72793259,0.00014999,2]
[337007490,1725307840501,-614.0,0.00015,2]
[337007491,1725307840511,-5029.1155318,0.00015,2]
[337007492,1725307840520,-4946157.06073861,0.00015,2]
[337007493,1725307840530,-600.0,0.00015,2]
[337007494,1725307840546,-169243.49473747,0.00015,2]
[337007495,1725307840555,-2000.0,0.00015,2]
[337007496,1725307840564,-200.0,0.00015,2]
[337007497,1725307840573,-1000.0,0.00015,2]
[337007498,1725307840587,-1000.0,0.00015,2]
[337007499,1725307840596,-1000.0,0.00015,2]
[337007500,1725307840606,-1000.0,0.00015,2]
[337007501,1725307840615,-1000.0,0.00015,2]
[337007502,1725307840625,-1000.0,0.00015,2]
[337007503,1725307840635,-1000.0,0.00015,2]
[337007504,1725307840644,-1000.0,0.00015,2]
[337007505,1725307840654,-1000.0,0.00015,2]
[337007506,1725307840664,-1000.0,0.00015,2]
[337007507,1725307840673,-1000.0,0.00015,2]
[337007508,1725307840682,-1000.0,0.00015,2]
[337007509,1725307840691,-1000.0,0.00015,2]
[337007510,1725307840700,-654.80550174,0.00015,2]
[337007511,1725307840709,-151.612075,0.00015,2]
[337007512,1725307840718,-151.0,0.00015,2]
[337007513,1725307840727,-151.0,0.00015,2]
[337007514,1725307840736,-151.0,0.00015,2]
[337007515,1725307840746,-151.0,0.00015,2]
[337007516,1725307840756,-151.0,0.00015,2]
[337007517,1725307840765,-151.0,0.00015,2]
[337007518,1725307840774,-200.0,0.00015,2]
[337007519,1725307840787,-497.0,0.00015,2]
[337007520,1725307840796,-151.219931,0.00015,2]
[337007521,1725307840805,-151.0,0.00015,2]
[337007522,1725307840814,-151.0,0.00015,2]
[337007523,1725307840824,-151.0,0.00015,2]
[337007524,1725307840833,-200.0,0.00015,2]
[337007525,1725307840843,-151.230103,0.00015,2]
[337007526,1725307840852,-151.281849,0.00015,2]
[337007527,1725307840861,-151.0,0.00015,2]
[337007528,1725307840871,-151.0,0.00015,2]
[337007529,1725307840880,-151.0,0.00015,2]
[337007530,1725307840890,-151.0,0.00015,2]
[337007531,1725307840899,-151.0,0.00015,2]
[337007532,1725307840908,-151.0,0.00015,2]
[337007533,1725307840917,-151.0,0.00015,2]
[337007534,1725307840927,-151.0,0.00015,2]
[337007535,1725307840937,-1620.66304,0.00015,2]
[337007536,1725307840947,-151.0,0.00015,2]
[337007537,1725307840957,-151.0,0.00015,2]
[337007538,1725307840966,-151.0,0.00015,2]
[337007539,1725307840977,-151.0,0.00015,2]
[337007540,1725307840986,-151.929734,0.00015,2]
[337007541,1725307840996,-152.024505,0.00015,2]
[337007542,1725307841006,-151.0,0.00015,2]
[337007543,1725307841016,-151.0,0.00015,2]
[337007544,1725307841026,-151.0,0.00015,2]
[337007545,1725307841035,-151.0,0.00015,2]
[337007546,1725307841045,-151.0,0.00015,2]
[337007547,1725307841054,-151.0,0.00015,2]
[337007548,1725307841063,-151.0,0.00015,2]
[337007549,1725307841072,-151.383211,0.00015,2]
[337007550,1725307841082,-286.91566,0.00015,2]
[337007551,1725307841090,-286.91566,0.00015,2]
[337007552,1725307841100,-1529.935775,0.00015,2]
[337007553,1725307841109,-151.0,0.00015,2]
[337007554,1725307841119,-1529.935775,0.00015,2]
[337007555,1725307841129,-151.0,0.00015,2]
[337007556,1725307841138,-286.91566,0.00015,2]
[337007557,1725307841148,-286.91566,0.00015,2]
[337007558,1725307841158,-1157.248209,0.00015,2]
[337007559,1725307841167,-1157.248209,0.00015,2]
[337007560,1725307841177,-1529.935775,0.00015,2]
[337007561,1725307841186,-1529.935775,0.00015,2]
[337007562,1725307841195,-1157.248209,0.00015,2]
[337007563,1725307841204,-1157.248209,0.00015,2]
[337007564,1725307841213,-151.0,0.00015,2]
[337007565,1725307841222,-152.535705,0.00015,2]
[337007566,1725307841232,-151.0,0.00015,2]
[337007567,1725307841242,-151.0,0.00015,2]
[337007568,1725307841251,-151.0,0.00015,2]
[337007569,1725307841261,-155.838768,0.00015,2]
[337007570,1725307841270,-151.0,0.00015,2]
[337007571,1725307841280,-151.0,0.00015,2]
[337007572,1725307841290,-151.0,0.00015,2]
[337007573,1725307841299,-151.0,0.00015,2]
[337007574,1725307841308,-151.0,0.00015,2]
[337007575,1725307841318,-151.0,0.00015,2]
[337007576,1725307841327,-151.0,0.00015,2]
[337007577,1725307841336,-151.797472,0.00015,2]
[337007578,1725307841345,-151.0,0.00015,2]
[337007579,1725307841355,-151.0,0.00015,2]
[337007580,1725307841364,-151.0,0.00015,2]
[337007581,1725307841374,-168.054539,0.00015,2]
[337007582,1725307841383,-151.0,0.00015,2]
[337007583,1725307841392,-168.054539,0.00015,2]
[337007584,1725307841401,-151.0,0.00015,2]
[337007585,1725307841411,-168.054539,0.00015,2]
[337007586,1725307841420,-168.054539,0.00015,2]
[337007587,1725307841430,-151.0,0.00015,2]
[337007588,1725307841439,-151.0,0.00015,2]
[337007589,1725307841448,-151.0,0.00015,2]
[337007590,1725307841458,-151.0,0.00015,2]
[337007591,1725307841467,-151.0,0.00015,2]
[337007592,1725307841477,-151.0,0.00015,2]
[337007593,1725307841486,-151.0,0.00015,2]
[337007594,1725307841495,-151.0,0.00015,2]
[337007595,1725307841504,-151.0,0.00015,2]
[337007596,1725307841513,-151.0,0.00015,2]
[337007597,1725307841522,-151.0,0.00015,2]
[337007598,1725307841532,-151.0,0.00015,2]
[337007599,1725307841541,-505.539221,0.00015,2]
[337007600,1725307841550,-505.539221,0.00015,2]
[337007601,1725307841560,-408.363098,0.00015,2]
[337007602,1725307841569,-408.363098,0.00015,2]
[337007603,1725307841579,-1454.59,0.00015,2]
[337007604,1725307841591,-151.0,0.00015,2]
[337007605,1725307841600,-151.0,0.00015,2]
[337007606,1725307841610,-151.0,0.00015,2]
[337007607,1725307841619,-151.0,0.00015,2]
[337007608,1725307841629,-151.0,0.00015,2]
[337007609,1725307841638,-151.0,0.00015,2]
[337007610,1725307841648,-200.0,0.00015,2]
[337007611,1725307841657,-151.0,0.00015,2]
[337007612,1725307841667,-151.0,0.00015,2]
[337007613,1725307841677,-152.251927,0.00015,2]
[337007614,1725307841686,-151.0,0.00015,2]
[337007615,1725307841695,-151.0,0.00015,2]
[337007616,1725307841705,-151.0,0.00015,2]
[337007617,1725307841714,-151.0,0.00015,2]
[337007618,1725307841724,-2607.932911,0.00015056,2]
[337007619,1725307841733,-21327.736477,0.00015066,2]
[337007620,1725307841743,-505.539221,0.00015066,2]
[337007621,1725307841752,-505.539221,0.00015066,2]
[337007622,1725307841762,-408.363098,0.00015066,2]
[337007623,1725307841772,-408.363098,0.00015066,2]
[337007624,1725307841781,-151.0,0.00015066,2]
[337007625,1725307841791,-151.0,0.00015066,2]
[337007626,1725307841800,-151.0,0.00015066,2]
[337007627,1725307841810,-151.0,0.00015066,2]
[337007628,1725307841819,-151.0,0.00015066,2]
[337007629,1725307841829,-151.0,0.00015066,2]
[337007630,1725307841838,-151.0,0.00015066,2]
[337007631,1725307841848,-151.0,0.00015066,2]
[337007632,1725307841858,-151.0,0.00015066,2]
[337007633,1725307841867,-151.0,0.00015106,2]
[337007634,1725307841876,-151.0,0.00015106,2]
[337007635,1725307841886,-151.0,0.00015106,2]
[337007636,1725307841895,-151.0,0.00015106,2]
[337007637,1725307841905,-151.0,0.00015106,2]
[337007638,1725307841915,-151.0,0.00015106,2]
[337007639,1725307841924,-151.0,0.00015106,2]
[337007640,1725307841933,-151.133015,0.00015106,2]
[337007641,1725307841943,-273.05461,0.00015106,2]
[337007642,1725307841951,-151.0,0.00015106,2]
[337007643,1725307841961,-273.05461,0.00015106,2]
[337007644,1725307841970,-151.0,0.00015106,2]
[337007645,1725307841980,-151.0,0.00015106,2]
[337007646,1725307841989,-151.0,0.00015106,2]
[337007647,1725307841999,-151.0,0.00015106,2]
[337007648,1725307842008,-151.0,0.00015106,2]
[337007649,1725307842018,-151.0,0.00015106,2]
[337007650,1725307842027,-168.054539,0.00015106,2]
[337007651,1725307842037,-151.0,0.00015106,2]
[337007652,1725307842046,-168.054539,0.00015106,2]
[337007653,1725307842198,-151.0,0.00015106,2]
[337007654,1725307842246,-151.0,0.00015106,2]
[337007655,1725307842256,-203.248452,0.00015106,2]
[337007656,1725307842266,-151.0,0.00015106,2]
[337007657,1725307842275,-151.0,0.00015106,2]
[337007658,1725307842285,-247.835661,0.00015106,2]
[337007659,1725307842294,-2000.0,0.0001515,2]
[337007660,1725307842304,-200.0,0.0001515,2]
[337007661,1725307842313,-227.66511323,0.0001515,2]
[337007662,1725307842322,-151.0,0.0001515,2]
[337007663,1725307842331,-200.0,0.0001515,2]
[337007664,1725307842341,-218.674856,0.0001515,2]
[337007665,1725307842351,-151.0,0.0001515,2]
[337007666,1725307842360,-151.0,0.0001515,2]
[337007667,1725307842370,-151.0,0.0001515,2]
[337007668,1725307842379,-151.0,0.0001515,2]
[337007669,1725307842388,-151.0,0.0001515,2]
[337007670,1725307842397,-151.912831,0.0001515,2]
[337007671,1725307842407,-188.012906,0.0001515,2]
[337007672,1725307842416,-151.0,0.0001515,2]
[337007673,1725307842425,-151.37625,0.0001515,2]
[337007674,1725307842435,-151.796839,0.0001515,2]
[337007675,1725307842445,-151.0,0.0001515,2]
[337007676,1725307842454,-225.97044,0.0001515,2]
[337007677,1725307842463,-200.0,0.0001515,2]
[337007678,1725307842472,-151.0,0.0001515,2]
[337007679,1725307842482,-151.0,0.0001515,2]
[337007680,1725307842491,-270.320636,0.0001515,2]
[337007681,1725307842500,-151.0,0.0001515,2]
[337007682,1725307842509,-151.0,0.0001515,2]
[337007683,1725307842518,-151.367674,0.0001515,2]
[337007684,1725307842528,-151.0,0.0001515,2]
[337007685,1725307842538,-151.0,0.0001515,2]
[337007686,1725307842547,-151.743083,0.0001515,2]
[337007687,1725307842557,-198.2466,0.0001515,2]
[337007688,1725307842567,-151.0,0.0001515,2]
[337007689,1725307842577,-155.819532,0.0001515,2]
[337007690,1725307842591,-151.0,0.0001515,2]
[337007691,1725307842601,-151.0,0.0001515,2]
[337007692,1725307842610,-151.0,0.0001515,2]
[337007693,1725307842620,-151.0,0.0001515,2]
[337007694,1725307842631,-286.91566,0.0001515,2]
[337007695,1725307842641,-1529.935775,0.0001515,2]
[337007696,1725307842650,-151.0,0.0001515,2]
[337007697,1725307842660,-286.91566,0.0001515,2]
[337007698,1725307842670,-1157.248209,0.0001515,2]
[337007699,1725307842680,-1529.935775,0.0001515,2]
[337007700,1725307842689,-1157.248209,0.0001515,2]
[337007701,1725307842698,-151.0,0.0001515,2]
[337007702,1725307842708,-200.0,0.0001515,2]
[337007703,1725307842717,-200.0,0.00015301,2]
[337007704,1725307842727,-200.0,0.00015301,2]
[337007705,1725307842736,-200.0,0.00015301,2]
[337007706,1725307842745,-906.0,0.000154,3]
[337007707,1725307842755,-200.0,0.00015455,2]
[337007708,1725307842764,-200.0,0.00015455,2]
[337007709,1725307842773,-200.0,0.00015455,2]
[337007710,1725307842783,-1000.0,0.00015521,2]
[337007711,1725307842793,-200.0,0.00015609,2]
[337007712,1725307842803,-200.0,0.00015609,2]
[337007713,1725307842812,-200.0,0.00015609,2]
[337007714,1725307842822,-553.35245459,0.00015613,2]
[337007715,1725307842831,-1000.0,0.00015717,2]
[337007716,1725307842841,-151.74,0.0001579,2]
[337007717,1725307842851,-4396.65974335,0.00015791,2]
[337007718,1725307842860,-760.0,0.000158,2]
[337007719,1725307842870,-3415.0,0.000159,2]
[337007720,1725307842879,-11505.0,0.00016,5]
[337007721,1725307842888,-500.0,0.00016164,2]
[337007722,1725307842897,-500.0,0.00016164,2]
[337007723,1725307842907,-580.83786876,0.00016164,2]
[337007724,1725307842917,-500.0,0.00016164,2]
[337007725,1725307842926,-330.31,0.00016262,2]
[337007726,1725307842935,-553.35245459,0.00016328,2]
[337007727,1725307842945,-1500.0,0.00016419,2]
[337007728,1725307842954,-150.0,0.00016438,2]
[337007729,1725307842964,-300.0,0.00016513,2]
[337007730,1725307842973,-151.0,0.00016608,2]
[337007731,1725307842983,-5854.0,0.00016654,2]
[337007732,1725307842994,-3732.0,0.00016654,2]
[337007733,1725307843003,-278.0,0.00016654,2]
[337007734,1725307843013,-1144.0,0.00016654,2]
[337007735,1725307843022,-13463.0,0.00016654,2]
[337007736,1725307843031,-1078.0,0.00016654,2]
[337007737,1725307843040,-4396.65974335,0.00016792,2]
[337007739,1725307843050,-151.0,0.00016883,2]
[337007742,1725307843059,-286.91566,0.00016883,2]
[337007744,1725307843068,-1529.935775,0.00016883,2]
[337007746,1725307843077,-151.0,0.00016883,2]
[337007748,1725307843086,-286.91566,0.00016883,2]
[337007750,1725307843096,-1157.248209,0.00016883,2]
[337007752,1725307843106,-1529.935775,0.00016883,2]
[337007754,1725307843115,-1157.248209,0.00016883,2]
[337007756,1725307843125,-151.0,0.00016883,2]
[337007758,1725307843135,-151.0,0.00016883,2]
[337007760,1725307843145,-151.0,0.00016883,2]
[337007763,1725307843158,-151.0,0.00016883,2]
[337007764,1725307843168,-168.054539,0.00016883,2]
[337007766,1725307843179,-151.0,0.00016883,2]
[337007768,1725307843190,-168.054539,0.00016883,2]
[337007769,1725307843200,-151.317023,0.00016883,2]
[337007770,1725307843210,-151.0,0.00016883,2]
[337007771,1725307843219,-151.0,0.00016883,2]
[337007772,1725307843229,-151.0,0.00016883,2]
[337007773,1725307843238,-505.539221,0.00016883,2]
[337007774,1725307843248,-505.539221,0.00016883,2]
[337007775,1725307843257,-408.363098,0.00016883,2]
[337007776,1725307843266,-408.363098,0.00016883,2]
[337007777,1725307843276,-151.0,0.00016883,2]
[337007778,1725307843285,-151.0,0.00016883,2]
[337007779,1725307843295,-151.0,0.00016883,2]
[337007780,1725307843304,-151.0,0.00016883,2]
[337007781,1725307843314,-151.0,0.00016883,2]
[337007782,1725307843323,-151.0,0.00016883,2]
[337007783,1725307843333,-152.194566,0.00016883,2]
[337007784,1725307843343,-151.0,0.00016883,2]
[337007785,1725307843353,-155.430586,0.00016883,2]
[337007786,1725307843363,-529.24,0.00016898,2]
[337007787,1725307843372,-167.595764,0.00017042,2]
[337007788,1725307843381,-151.0,0.00017042,2]
[337007789,1725307843391,-151.0,0.00017042,2]
[337007790,1725307843400,-151.0,0.00017042,2]
[337007791,1725307843409,-151.0,0.00017042,2]
[337007792,1725307843419,-553.35245459,0.00017042,2]
[337007793,1725307843428,-150.612,0.00017417,2]